Cogmind - Beta 13 @@@ ROGUE MODE // 2024.06.03 @ 20:06:16 Player: morimori Result: Destroyed by EX-DEC with AWS/EX-DEC Performance ------------- Evolutions (0) 0 Regions Visited (3) 600 Robots Destroyed (45) 225 Value Destroyed (801) 801 Prototype IDs (23) 460 Alien Tech Used (0) 0 Bonus (107) 107 TOTAL SCORE: 2193 Bonus ------- Aligned with FarCom 300 Friendly Fire -193 Cogmind --------- Core Integrity 0/250 Matter 267/300 Energy 94/250 System Corruption 0% Temperature Cool (0) Movement Rolling (135) Ox3 Location -10/Exiles Parts ------- > --- POWER (1) -------- Ion Engine > --- PROPULSION (2) --- Wheel Compact Wheel > --- UTILITY (2) ------ Huge Storage Unit Improved Targeting Computer > --- WEAPON (2) ------- AWS/Gauss > --- INVENTORY (25) --- Aluminum Leg Aluminum Leg Aluminum Leg Aluminum Leg Carbon-fiber Leg Heat Sink Improved Heat Sink Large Storage Unit High-capacity Storage Unit High-capacity Matter Pod (200) Experimental Sensor Array Improved Terrain Scanner Heavy Armor Plating Hacking Suite Skeleton Box YOLO Cannon Light Assault Rifle Light Cannon Grenade Launcher Scythe Peak State ------------ > --- POWER ------------ Ion Engine > --- PROPULSION ------- Wheel Compact Wheel > --- UTILITY ---------- Huge Storage Unit Improved Targeting Computer > --- WEAPON ----------- AWS/Gauss > --- INVENTORY -------- Aluminum Leg Aluminum Leg Aluminum Leg Aluminum Leg Carbon-fiber Leg Heat Sink Improved Heat Sink Large Storage Unit High-capacity Storage Unit High-capacity Matter Pod Experimental Sensor Array Improved Terrain Scanner Heavy Armor Plating Hacking Suite Skeleton Box YOLO Cannon Light Assault Rifle Light Cannon Grenade Launcher Scythe [Rating: 28] Favorites ----------- Power Ion Engine Engine Ion Engine Propulsion Aluminum Leg Leg Aluminum Leg Wheel Wheel Utility Improved Targeting Computer Device Seismic Detector Storage Huge Storage Unit Processor Improved Targeting Computer Weapon Small Laser Energy Gun Small Laser Ballistic Gun Light Assault Rifle Ballistic Cannon Light Cannon Launcher Grenade Launcher Build | -11 -10 -10 -10 ------- Run | Yrd Mat Min Exi Slots Evolved . | . . . . Power . | . . . . Propulsion . | . . . . Utility . | . . . . Weapon . | . . . . Parts Attached 45 | 8 21 13 3 Power 6 | 1 3 1 1 Engine 6 | 1 3 1 1 Core . | . . . . Reactor . | . . . . Propulsion 13 | 2 5 6 . Treads . | . . . . Leg 4 | . 3 1 . Wheel 9 | 2 2 5 . Hover . | . . . . Flight . | . . . . Utility 7 | 3 4 . . Device 1 | 1 . . . Storage 5 | 2 3 . . Processor 1 | . 1 . . Hackware . | . . . . Protection . | . . . . Artifact . | . . . . Weapon 19 | 2 9 6 2 Energy Gun 9 | 2 5 1 1 Energy Cannon . | . . . . Ballistic Gun 5 | . 1 3 1 Ballistic Cannon 1 | . 1 . . Launcher 4 | . 2 2 . Special Weapon . | . . . . Impact Weapon . | . . . . Slashing Weapon . | . . . . Piercing Weapon . | . . . . Special Melee Weapon . | . . . . Unidentified Prototypes . | . . . . Parts Lost 10 | . 8 1 1 Power 3 | . 1 1 1 Propulsion 4 | . 4 . . Utility . | . . . . Weapon 3 | . 3 . . Highest Loss Streak 4 | . 4 1 1 To Critical Strikes . | . . . . Average Slot Usage (%) 98 | . 98 97 98 Engine 13 | . 13 13 13 Leg 13 | . 13 16 . Wheel 13 | . 13 9 28 Storage 14 | . 14 14 14 Processor 13 | . 13 14 14 Energy Gun 19 | . 20 14 26 Ballistic Gun 7 | . 6 12 . Naked Turns . | . . . . Heaviest Build 95 | 14 90 90 95 Greatest Support 32 | 20 20 32 26 Greatest Overweight (x) 28 | 2 8 28 3 Average Overweight (x) 2 | . 2 3 3 Largest Inventory Capacity 25 | 8 25 25 25 Average Capacity 22 | 7 22 25 25 Most Carried 25 | 8 25 25 25 Average Carried 20 | 5 19 24 24 Final Capacity 25 | 8 25 25 25 Final Carried 25 | 8 24 25 22 Class Distribution -------------------- 75% | Mutant 24% | Scavenger-Mutant Dominant Class ---------------- Mutant | -10/Materials Scavenger-Mutant | -10/Mines Mutant | -10/Exiles Resources | -11 -10 -10 -10 ----------- Run | Yrd Mat Min Exi Matter Collected 857 | 280 391 122 64 Remotely . | . . . . Salvage Created 1266 | 259 637 242 128 Parts 76 | 20 31 21 4 Haulers Intercepted . | . . . . Recyclers Shooed . | . . . . Parts Field Recycled . | . . . . Retrieved Matter . | . . . . Parts Self-Destructed . | . . . . Prevented . | . . . . Kills | -11 -10 -10 -10 ------- Run | Yrd Mat Min Exi Combat Hostiles Destroyed 23 | . 15 8 . Guns 14 | . 11 3 . Cannons 1 | . 1 . . AOE 8 | . 3 5 . Classes Destroyed 10 | 3 4 1 2 Worker 3 | 2 1 . . Builder 1 | . . 1 . Tunneler 9 | 7 . 2 . Recycler 2 | 1 . 1 . Operator 2 | . 2 . . Turret 1 | . . . 1 Watcher 3 | . 3 . . Swarmer 9 | . 3 6 . Grunt 14 | . 12 2 . Zionite 1 | . . . 1 Thug 1 | . . . 1 Best Kill Streak 5 | 5 4 4 2 Combat Bots Only 4 | . 4 3 . Max Kills in Single Turn 3 | 1 2 3 1 Gunslinging . | . . . . Exploded 3 | . 2 3 . Melee . | . . . . Uniques/NPCs Destroyed . | . . . . Combat | -11 -10 -10 -10 -------- Run | Yrd Mat Min Exi Hostile Shots Fired 126 | . 85 23 18 Missed 34 | . 23 6 5 Damage Taken 1393 | 67 802 179 345 Core 258 | 38 151 17 52 Absorbed by Shields . | . . . . Core Remaining (%) 84 | 84 . . . Volleys Fired 107 | 20 57 24 6 Largest 2 | 2 2 2 2 Hottest 90 | 80 80 70 90 Shots Fired 208 | 40 109 43 16 Gun 200 | 40 105 39 16 Cannon 3 | . 3 . . Launcher 5 | . 1 4 . Special . | . . . . Kinetic 35 | . 12 19 4 Thermal 113 | 20 61 20 12 Explosive 5 | . 1 4 . Electromagnetic 55 | 20 35 . . Robot Hit Streak 19 | 11 19 12 13 Robot Miss Streak 3 | 2 2 3 3 Penetration Max . | . . . . Secondary Targets . | . . . . Autonomous 4 | . . . 4 Shots Hit Robots 157 | 27 88 30 12 Core Hits 72 | 10 37 17 8 Critical Kills 1 | . . . 1 Critical Parts Destroyed . | . . . . Critical Strikes 3 | 1 1 . 1 Burn 1 | . 1 . . Destroy 1 | . . . 1 Corrupt 1 | 1 . . . Melee Attacks . | . . . . Impact . | . . . . Slashing . | . . . . Piercing . | . . . . Sneak Attacks . | . . . . Combat Hostiles . | . . . . Follow-up Attacks . | . . . . Damage Inflicted 2693 | 474 1418 595 206 Guns 1823 | 328 1036 253 206 Cannons 57 | . 57 . . Explosions 813 | 146 325 342 . Melee . | . . . . Ramming . | . . . . Kinetic 338 | . 112 113 113 Thermal 1216 | 258 725 140 93 Explosive 474 | . 132 342 . Electromagnetic 665 | 216 449 . . Impact . | . . . . Slashing . | . . . . Piercing . | . . . . Highest Corruption . | . . . . Average Corruption . | . . . . Corruption Purged . | . . . . Corruption Blocked . | . . . . Overload Shots . | . . . . Overflow Damage 100 | 33 36 31 . Projectiles . | . . . . Explosions 100 | 33 36 31 . Melee . | . . . . Knockbacks . | . . . . Impact . | . . . . Kinetic . | . . . . Secondary . | . . . . Self-Inflicted Damage 197 | 67 130 . . Shots 6 | 2 4 . . Rammed . | . . . . Targets Rammed . | . . . . Kicked . | . . . . Crushed . | . . . . Highest Temperature 281 | 92 281 120 90 Average Temperature 62 | 35 81 37 41 Received Heat Transfer 408 | . 333 75 . Effects 2 | . 2 . . Interference 2 | . 2 . . Siege Activations . | . . . . Robots Corrupted . | . . . . Combat Hostiles . | . . . . Parts Fried 2 | 1 1 . . Impact Corruptions . | . . . . Robots Melted . | . . . . Combat Hostiles . | . . . . Parts Melted 3 | . 3 . . Heat Transferred 2654 | 500 1570 336 248 Parts Sabotaged . | . . . . Parts Stolen . | . . . . Parts Stripped . | . . . . Power Chain Reactions 8 | 3 5 . . Alert | -11 -10 -10 -10 ------- Run | Yrd Mat Min Exi Peak Influence 189 | 50 189 178 . Initial 32 | . 32 . . Average 41 | 22 42 43 . Maximum Alert Level . | . . . . Low Security (%) 100 | 100 100 100 . Level 1 . | . . . . Level 2 . | . . . . Level 3 . | . . . . Level 4 . | . . . . Level 5 . | . . . . High Security . | . . . . Max Security . | . . . . Squads Dispatched 4 | . 3 1 . Investigation 2 | . 1 1 . Extermination . | . . . . Reinforcement 2 | . 2 . . Assault . | . . . . Garrison . | . . . . Intercept . | . . . . Searches Triggered . | . . . . Construction Impeded . | . . . . Haulers Reinforced . | . . . . Active Scanning Responses . | . . . . Cargo Convoy Interrupts . | . . . . Stealth | -11 -10 -10 -10 --------- Run | Yrd Mat Min Exi Distress Signals . | . . . . Communications Jammed . | . . . . Distress Signals . | . . . . Times Spotted 41 | . 28 8 5 Peak Tracking Total 13 | . 4 3 13 Tactical Retreats 3 | . 2 . 1 Traps | -11 -10 -10 -10 ------- Run | Yrd Mat Min Exi Traps Triggered . | . . . . Indirectly . | . . . . Trap Hack Attempts . | . . . . Triggered . | . . . . Disarmed . | . . . . Reprogrammed . | . . . . Reused . | . . . . Traps Extracted . | . . . . Installed . | . . . . Triggered . | . . . . Machines | -11 -10 -10 -10 ---------- Run | Yrd Mat Min Exi Machines Disabled 2 | . 1 . 1 Max in Single Turn 1 | . 1 . 1 Machines Repaired . | . . . . Machines Dismantled . | . . . . Machines Sabotaged . | . . . . Overloaded Fab Kills . | . . . . Hacking | -11 -10 -10 -10 --------- Run | Yrd Mat Min Exi Machines Accessed 12 | . 9 2 1 Terminals 9 | . 8 1 . Fabricators . | . . . . Repair Stations . | . . . . Recycling Units 1 | . 1 . . Scanalyzers . | . . . . Garrison Access . | . . . . Total Hacks 27 | . 22 4 1 Successful 18 | . 14 3 1 Failed 9 | . 8 1 . Catastrophic . | . . . . Database Lockouts . | . . . . Manual 24 | . 22 1 1 Terminals 24 | . 21 3 . Fabricators . | . . . . Repair Stations . | . . . . Recycling Units 1 | . 1 . . Scanalyzers . | . . . . Garrison Access . | . . . . Terminal Hacks 10 | . 6 3 1 Robot Analysis 4 | . 4 . . Open Door 1 | . . 1 . Level Access Points 1 | . . 1 . Branch Access Points 1 | . . 1 . Terminal Index 1 | . 1 . . Unreport Threat 1 | . 1 . . Derelict Proto ID Bank 1 | . . . 1 Fabricator Hacks . | . . . . Repair Station Hacks . | . . . . Recycling Unit Hacks 1 | . 1 . . Retrieve Components 1 | . 1 . . Scanalyzer . | . . . . Garrison Access Hacks . | . . . . Unauthorized Hacks 7 | . 7 . . Terminals 7 | . 7 . . Assimilate 3 | . 3 . . Botnet 3 | . 3 . . Operators 1 | . 1 . . Fabricators . | . . . . Repair Stations . | . . . . Recycling Units . | . . . . Scanalyzers . | . . . . Garrison Access . | . . . . Data Cores Recovered . | . . . . Used . | . . . . Hacking Detections 9 | . 8 1 . Full Trace Events . | . . . . Feedback Events . | . . . . Feedback Blocked . | . . . . Robot Schematics Acquired . | . . . . Robots Built . | . . . . Authchips . | . . . . Time . | . . . . Total Robot Build Rating . | . . . . Part Schematics Acquired . | . . . . Parts Built . | . . . . Authchips . | . . . . Time . | . . . . Total Part Build Rating . | . . . . Parts Repaired . | . . . . Time . | . . . . Parts Recycled . | . . . . Recycled Matter . | . . . . Retrieved Matter . | . . . . Retrieved Components 1 | . 1 . . Parts Scanalyzed . | . . . . Part Schematics Acquired . | . . . . Parts Damaged . | . . . . Bothacking | -11 -10 -10 -10 ------------ Run | Yrd Mat Min Exi Used RIF Installer . | . . . . Robots Hacked . | . . . . Non-combat . | . . . . Combat . | . . . . Robot Hacks Applied . | . . . . Relay Couplers Released . | . . . . Fabnet Peak Effective % . | . . . . Robots Rewired . | . . . . Allies Hacked . | . . . . Hacks Repelled . | . . . . Allies | -11 -10 -10 -10 -------- Run | Yrd Mat Min Exi Total Allies 2 | . 1 1 . Largest Group 2 | . 1 2 2 Highest-Rated Group 41 | . 10 41 41 Highest-Rated Ally 31 | . 10 31 31 Total Orders 11 | . 4 7 . STAY 6 | . 2 4 . FOLLOW 5 | . 2 3 . Ally Attacks . | . . . . Total Damage . | . . . . Kills . | . . . . Allies Corrupted . | . . . . Allies Melted . | . . . . Intel | -11 -10 -10 -10 ------- Run | Yrd Mat Min Exi Robot Analysis Total 4 | . 4 . . Derelict Logs Recovered 2 | . . 2 . Drone Launches . | . . . . Drone Recoveries . | . . . . Exploration | -11 -10 -10 -10 ------------- Run | Yrd Mat Min Exi Turns Passed 4465 | 233 2682 1156 394 Spaces Moved 2001 | 138 1182 422 259 Core 6 | 5 . 1 . Treads . | . . . . Legs 462 | . 309 153 . Wheels 1533 | 133 873 268 259 Hover . | . . . . Flight . | . . . . Fastest Speed 50 | 50 80 130 135 Average Speed 186 | 81 191 237 135 Slowest Speed 1450 | 150 400 1450 135 Overloaded Moves . | . . . . Propulsion Burnouts . | . . . . Robots Hopped . | . . . . Cave-ins Triggered . | . . . . Exploration Rate (%) 54 | 5 99 61 54 Regions Visited 3 Branch Regions 2 Pre-discovered Areas 1 | . . 1 . Known Exits Taken 1 | . . 1 . Unknown Exits Taken 2 | 1 1 . . Scrap Searched 1 | . . 1 . Spaces Dug . | . . . . Terrain Destroyed 64 | 10 22 31 1 Melee . | . . . . Projectile 1 | . . . 1 AOE 63 | 10 22 31 . Terrain Rammed . | . . . . Walls Destroyed . | . . . . Machines Disabled . | . . . . Actions | -11 -10 -10 -10 --------- Run | Yrd Mat Min Exi Total 2554 | 218 1494 543 299 Wait 304 | 39 197 61 7 Move 1998 | 137 1181 421 259 Hop . | . . . . Pick Up 56 | 10 28 8 10 Fast Attach 11 | 8 . 3 . Attach 10 | . 8 . 2 Detach 1 | 1 . . . Swap 24 | . 13 10 1 Drop 43 | 3 10 16 14 Fire 107 | 20 57 24 6 Melee . | . . . . Ram . | . . . . Kick . | . . . . Crush . | . . . . Escape Stasis . | . . . . Rewire . | . . . . Trap . | . . . . Miscellaneous . | . . . . Route ------- -11/Scrapyard -10/Materials (discovered 5 exits: *Mat x3 / *Min / [*Sub]) -10/Mines (discovered 3 exits: *Mat x2 / *Exi) -10/Exiles History --------- Turn | Location | Event 20 | -11/Scrapyard | Discovered new exit (range 16) 234 | -11/Scrapyard | Entered Materials 311 | -10/Materials | Build established: Mutant 385 | -10/Materials | Core integrity fell below 50% 405 | -10/Materials | Lost 4 parts (1p2n1w) 452 | -10/Materials | Discovered new exit (range 16) 666 | -10/Materials | Discovered new exit (range 12) 1488 | -10/Materials | Discovered new exit (range 8) 1878 | -10/Materials | Discovered new exit (range 9) 2310 | -10/Materials | Discovered new exit (range 4) 2916 | -10/Materials | Entered Mines 2916 | -10/Mines | Accompanied by 1 ally 2984 | -10/Mines | Core integrity fell below 20% 3053 | -10/Mines | Identified exit to Materials 3304 | -10/Mines | Build established: Scavenger-Mutant 3333 | -10/Mines | Met a Derelict shopkeep closing up shop 3838 | -10/Mines | Found a damaged Exp. Sensor Array with a note attached 3844 | -10/Mines | Found Prototype Device 3915 | -10/Mines | Identified exit to Exiles 3932 | -10/Mines | Learned location of Zion (-7) 4050 | -10/Mines | Received a Mining Laser from a helpful Derelict 4058 | -10/Mines | Deemed a non-threat by the Exiles lab entrance 4072 | -10/Mines | Entered Exiles 4072 | -10/Exiles | Accompanied by 2 allies 4173 | -10/Exiles | Met 8R-AWN 4255 | -10/Exiles | Met EX-HEX 4285 | -10/Exiles | Build established: Mutant 4296 | -10/Exiles | Met EX-BIN 4312 | -10/Exiles | Aligned with FarCom system 4313 | -10/Exiles | Given EX-Vault access code 4345 | -10/Exiles | Opened EX-Vault 4355 | -10/Exiles | Found Skeleton Box 4359 | -10/Exiles | Found YOLO Cannon 4365 | -10/Exiles | Found AWS/Gauss 4394 | -10/Exiles | Warned to stay clear of 0b10 Research branches 4406 | -10/Exiles | Exiles lab attacked by MAIN.C 4457 | -10/Exiles | Attacked by the Exiles 4466 | -10/Exiles | Destroyed by EX-DEC with AWS/EX-DEC Last Messages --------------- 04459_ Dropped Sml. Laser. 04460_ 8R-AWN: "I'll cover you all, get out of here!" 04460_ Penetrated by HV Slug. 04460_ HV Slug penetrates Machine. 04461_ Slug penetrates EZ-97T(z). 04461_ EZ-97T(z) destroyed. 04462_ Slug penetrates DAS Turret. 04462_ Slug penetrates Machine. 04462_ Penetrated by HV Slug. 04462_ HV Slug penetrates Machine. 04462_ Penetrated by HV Slug. 04462_ HV Slug penetrates Machine. 04463_ Slug penetrates DAS Turret. 04463_ DAS Turret suffers critical hit (Destroy). 04463_ DAS Turret destroyed. 04465_ Penetrated by HV Slug. 04465_ HV Slug penetrates Wall. 04465_ HV Slug penetrates Machine. Map ----- +----------------------------------------------------+ | ????????????????????????????????????????????# | | ????????????????????????????????????????????# | | ???????????????????????????????????????????## | | ???????????????????????????????????????????#" | | ???????????????????????????????????????????#" | | ???????????????????????????????????????????#" | | ???????????????????????????????????????????#" | | ???????????????????????????????????????????#" | | ???????????????????????????????????????????#" | | ???????????????????????????????????????????## | | ??????????????????????????????? ???????????# | | ??????????????????????????????" ??????????#" | | ??????????????????????????????" ??????????#" | | ?????????????????????????????? "??????????#" | | ?????????????? ##????????????" "?????????##" | | ?????????????? #???????????# #????????##"" | | ?????????????" #####????### ###?######"" | | ?????????????" """#####X# #"###""""""" | | ?????????????" """""" " "" | | ??????????????# "" """ " | | ???????????????? " " | | ?????????????????# | | ???????????????????# | | ????????????????????# c | | ?????????????????????# / | | ??????????????????????# @ =% g | | ??????????????????????# "% % """""" | | ?????????????????????## [ ######""" | | ?????????????????????# [ ""##????#### | | ?????????????????????# " !% """##????????? | | ????????????????????#""" ! % """##?????????? | | ????????????????????#""" % ""#??????????? | | ????????????????????#"" ##??????????? | | ????????????????????#" c #?????????? | | ????????????????????# ???????? | | ???????????????????#"#" c ???????? | | ???????????????????###"""" ???????? | | ?????????????????????## ????????? | | ??????????????????????#" ?????????? | | ??????????????????????#""" ??????????? | | ???????????????????????"" ???????????? | | ????????????????????????? ?????????????? | | ?????????????????????????" ???????????????? | | ?????????????????????????? ??????????????????? | | ?????????????????????????? ????????????????????? | | ?????????????????????????????????????????????????? | | ?????????????????????????????????????????????????? | | ?????????????????????????????????????????????????? | | ?????????????????????????????????????????????????? | | ?????????????????????????????????????????????????? | +----------------------------------------------------+ Best States ------------- Heat Dissipation 25 Energy Generation 10 Energy Capacity 250 Matter Stores 300 Matter Capacity 300 Sight Range 16 Terrain Scan Density 10 Evasion (%) 44 Targeting Accuracy 6 Item Schematics ----------------- None Robot Schematics ------------------ None Fabricated ------------ Nothing Alien Tech Used ----------------- None Achievements -------------- None Challenges ------------ None Game ------ Seed GodDisruptionTearclaws Manual? 0 Play Time 00:25:14 Cumulative 213.0 hours Start 2024.06.03 @ 19:41:44 End 2024.06.03 @ 20:06:16 Sessions 1 Manual Loads 0 Difficulty Rogue Special Mode None Game No. 118 Rogue 118 Adventurer 0 Explorer 0 Win Type - Total 3 Types 3/0/0/0/0/0/0/0/0 Lore% 57 Gallery% 62 Achievement% 53 Wizard Run 0 Options --------- Layout 1 ASCII 0 Keyboard 1 Movement Vi Keybinds 0 Fullscreen 2 Font 24/Smallcaps Map View 50x35 Zoom Use 0% Tactical HUD 1 Map Filters NONE Filters NONE Steam 1 RUN: c96c9187-38cc-4d4d-ab8d-89ce38ccecac